[Event "37th Belgrade Trophy 2024"]
[Site "Belgrade"]
[Date "2024.11.23"]
[Round "1.3"]
[White "Askovic, Jovica"]
[Black "Atalik, Suat"]
[Result "0-1"]
[ECO "C54"]
[WhiteElo "1863"]
[BlackElo "2420"]
[Annotator "RC"]
[PlyCount "92"]
[EventDate "2024.11.23"]
[EventCountry "SRB"]
[SourceTitle "playchess.com"]
[Source "ChessBase"]
[SourceQuality "1"]
[TimeControl "40/5400+30:900+30"]

1. e4 {[%emt 0:00:01]} e5 {[%emt 0:00:16]} 2. Nf3 {[%emt 0:00:14]} Nc6 {[%emt 0:00:28]} 3. Bc4 {[%emt 0:00:20]} Bc5 {[%emt 0:00:30]} 4. c3 {[%emt 0:00:08]} Nf6 {[%emt 0:00:28]} 5. d4 {[%emt 0:00:33]} exd4 {[%emt 0:00:13]} 6. cxd4 {[%emt 0:01:19]} Bb4+ {[%emt 0:00:18]} 7. Bd2 {[%emt 0:01:05]} Nxe4 {[%emt 0:05:03]} 8. Bxb4 {[%emt 0:02:27]} Nxb4 {[%emt 0:00:11]} 9. Bxf7+ {[%emt 0:01:00]} Kxf7 {[%emt 0:00:08]} 10. Qb3+ {[%emt 0:00:22]} d5 {[%emt 0:00:06]} 11. Qxb4 {[%emt 0:01:51]} Re8 {[%emt 0:03:12]} 12. O-O {[%emt 0:01:49]} a5 {[%emt 0:01:32]} 13. Qb3 {[%emt 0:01:29]} a4 {[%emt 0:00:50]} 14. Qb4 {[%emt 0:03:15]} Qd6 {[%emt 0:02:59]} 15. Qxd6 {[%emt 0:01:05]} Nxd6 {[%emt 0:09:36]} 16. Nc3 {[%emt 0:01:11]} c6 {[%emt 0:00:08]} 17. Rfe1 {[%emt 0:01:49]} Bf5 {[%emt 0:02:46]} 18. Rxe8 {[%emt 0:01:58]} Kxe8 {[%emt 0:01:31]} 19. Re1+ {[%emt 0:00:45]} Kd8 {[%emt 0:02:32]} 20. Ne5 {[%emt 0:02:34]} a3 {[%emt 0:03:37]} 21. b3 {[%emt 0:02:59]} h5 {[%emt 0:02:34]} 22. f3 {[%emt 0:02:44]} Rc8 {[%emt 0:05:23]} 23. h3 {[%emt 0:16:17]} h4 {[%emt 0:06:36]} 24. Rc1 {[%emt 0:06:27]} Nb5 {[%emt 0:05:11]} 25. Ne2 {[%emt 0:08:33]} Ke7 {[%emt 0:00:27]} 26. Kf2 {[%emt 0:06:56]} Kf6 {[%emt 0:00:57]} 27. f4 {[%emt 0:01:25]} Re8 {[%emt 0:07:27]} 28. Ke3 {[%emt 0:06:25]} Bg6 {[%emt 0:03:13]} 29. Ng1 {[%emt 0:03:42]} Be4 {[%emt 0:01:41]} 30. Ngf3 {[%emt 0:01:00]} Bxf3 {[%emt 0:00:49]} 31. gxf3 {[%emt 0:00:10]} Nd6 {[%emt 0:02:02]} 32. Rg1 {[%emt 0:02:15]} Nf5+ {[%emt 0:00:32]} 33. Kd3 {[%emt 0:01:10]} Ng3 {[%emt 0:01:33]} 34. Kd2 {[%emt 0:02:42]} Kf5 {[%emt 0:00:23]} 35. Ke3 {[%emt 0:01:20]} c5 {[%emt 0:10:22]} 36. dxc5 {[%emt 0:04:55]} g5 {[%emt 0:00:33]} 37. Kd3 {[%emt 0:01:15]} Kxf4 {[%emt 0:02:29]} 38. Ng4 {[%emt 0:01:12]} Kxf3 {[%emt 0:01:02]} 39. b4 {[%emt 0:00:22]} Nh5 {[%emt 0:14:22]} 40. Nh2+ {[%emt 0:00:00]} Kf2 {[%emt 0:00:00]} 41. Rxg5 {[%emt 0:04:23]} Nf4+ {[%emt 0:02:04]} 42. Kc2 {[%emt 0:02:47]} d4 {[%emt 0:04:34]} 43. Ng4+ {[%emt 0:03:01]} Ke2 {[%emt 0:01:05]} 44. Ne5 {[%emt 0:10:43]} Nxh3 {[%emt 0:09:04]} 45. Rh5 {[%emt 0:05:19]} Nf4 {[%emt 0:01:19]} 46. Nc4 {[%emt 0:01:19]} Nxh5 {[%emt 0:00:09]} 0-1

[Event "37th Belgrade Trophy 2024"]
[Site "Belgrade"]
[Date "2024.11.23"]
[Round "1.4"]
[White "Stanojoski, Zvonko"]
[Black "Yasaswi Krishna Bommi"]
[Result "1-0"]
[ECO "A49"]
[WhiteElo "2401"]
[BlackElo "1861"]
[Annotator "RC"]
[PlyCount "75"]
[EventDate "2024.11.23"]
[EventCountry "SRB"]
[SourceTitle "playchess.com"]
[Source "ChessBase"]
[SourceQuality "1"]
[TimeControl "40/5400+30:900+30"]

1. Nf3 {[%emt 0:00:17]} Nf6 {[%emt 0:00:12]} 2. d4 {[%emt 0:00:35]} g6 {[%emt 0:00:06]} 3. g3 {[%emt 0:01:53]} Bg7 {[%emt 0:00:06]} 4. Bg2 {[%emt 0:00:04]} d6 {[%emt 0:00:08]} 5. O-O {[%emt 0:00:34]} O-O {[%emt 0:00:07]} 6. b3 {[%emt 0:00:35]} Nbd7 {[%emt 0:01:41]} 7. Bb2 {[%emt 0:00:08]} c5 {[%emt 0:01:32]} 8. dxc5 {[%emt 0:00:39]} Nxc5 {[%emt 0:01:48]} 9. c4 {[%emt 0:01:40]} Qc7 {[%emt 0:04:34]} 10. Nc3 {[%emt 0:00:58]} a6 {[%emt 0:03:16]} 11. Rc1 {[%emt 0:00:55]} Qd8 {[%emt 0:08:55]} 12. Nd4 {[%emt 0:07:17]} Ne6 {[%emt 0:04:37]} 13. Nxe6 {[%emt 0:08:34]} Bxe6 {[%emt 0:04:02]} 14. Bxb7 {[%emt 0:00:58]} Rb8 {[%emt 0:06:38]} 15. Bg2 {[%emt 0:10:11]} Bxc4 {[%emt 0:04:05]} 16. Ne4 {[%emt 0:04:19]} Nxe4 {[%emt 0:06:29]} 17. Bxg7 {[%emt 0:00:09]} Kxg7 {[%emt 0:01:13]} 18. Rxc4 {[%emt 0:01:17]} Nc5 {[%emt 0:03:15]} 19. b4 {[%emt 0:00:57]} Ne6 {[%emt 0:03:59]} 20. Qd2 {[%emt 0:02:38]} Qb6 {[%emt 0:04:13]} 21. Rfc1 {[%emt 0:00:29]} Kg8 {[%emt 0:03:41]} 22. Bd5 {[%emt 0:05:43]} Ng7 {[%emt 0:05:55]} 23. a3 {[%emt 0:00:23]} e6 {[%emt 0:03:30]} 24. Be4 {[%emt 0:03:13]} d5 {[%emt 0:04:12]} 25. Rc6 {[%emt 0:00:10]} Qb7 {[%emt 0:03:56]} 26. Bd3 {[%emt 0:00:50]} Ra8 {[%emt 0:02:19]} 27. Qc3 {[%emt 0:01:00]} Rfd8 {[%emt 0:05:09]} 28. Rc7 {[%emt 0:02:48]} Qb6 {[%emt 0:02:07]} 29. Qf6 {[%emt 0:01:53]} Rf8 {[%emt 0:00:48]} 30. R1c6 {[%emt 0:00:19]} Qb8 {[%emt 0:00:32]} 31. Qc3 {[%emt 0:00:36]} Rd8 {[%emt 0:04:38]} 32. Bxa6 {[%emt 0:00:39]} Nf5 {[%emt 0:02:57]} 33. Rb7 {[%emt 0:01:12]} d4 {[%emt 0:03:04]} 34. Qc5 {[%emt 0:00:27]} Qxb7 {[%emt 0:01:50]} 35. Bxb7 {[%emt 0:00:12]} Rxa3 {[%emt 0:00:36]} 36. Rc8 {[%emt 0:01:16]} Rxc8 {[%emt 0:00:09]} 37. Qxc8+ {[%emt 0:00:06]} Kg7 {[%emt 0:00:08]} 38. Be4 {[%emt 0:00:29]} 1-0

[Event "37th Belgrade Trophy 2024"]
[Site "Belgrade"]
[Date "2024.11.23"]
[Round "1.5"]
[White "Bozic, Andrej"]
[Black "Sutormin, Danila"]
[Result "0-1"]
[ECO "B92"]
[WhiteElo "1859"]
[BlackElo "2394"]
[Annotator "RC"]
[PlyCount "92"]
[EventDate "2024.11.23"]
[EventCountry "SRB"]
[SourceTitle "playchess.com"]
[Source "ChessBase"]
[SourceQuality "1"]
[TimeControl "40/5400+30:900+30"]

1. e4 {[%emt 0:00:05]} c5 {[%emt 0:01:40]} 2. Nf3 {[%emt 0:00:06]} a6 {[%emt 0:00:26]} 3. d4 {[%emt 0:03:29]} cxd4 {[%emt 0:00:07]} 4. Nxd4 {[%emt 0:00:04]} Nf6 {[%emt 0:00:08]} 5. Nc3 {[%emt 0:00:17]} e5 {[%emt 0:00:16]} 6. Nb3 {[%emt 0:01:43]} d6 {[%emt 0:11:46]} 7. f3 {[%emt 0:06:26]} Be6 {[%emt 0:00:25]} 8. Be3 {[%emt 0:00:30]} Nbd7 {[%emt 0:02:18]} 9. Be2 {[%emt 0:04:37]} Be7 {[%emt 0:01:27]} 10. Qd2 {[%emt 0:03:43]} O-O {[%emt 0:00:21]} 11. O-O {[%emt 0:00:19]} b5 {[%emt 0:12:42]} 12. Bf2 {[%emt 0:07:33]} Nb6 {[%emt 0:08:32]} 13. Bd3 {[%emt 0:17:41]} Qc7 {[%emt 0:05:18]} 14. Qe2 {[%emt 0:03:37]} Nc4 {[%emt 0:09:46]} 15. Rab1 {[%emt 0:04:32]} Rfc8 {[%emt 0:05:46]} 16. Rfe1 {[%emt 0:06:28]} b4 {[%emt 0:09:02]} 17. Nd1 {[%emt 0:04:20]} a5 {[%emt 0:01:07]} 18. Ne3 {[%emt 0:10:35]} Nxe3 {[%emt 0:00:31]} 19. Qxe3 {[%emt 0:00:11]} a4 {[%emt 0:01:17]} 20. Nc1 {[%emt 0:02:57]} Nd7 {[%emt 0:05:21]} 21. a3 {[%emt 0:04:28]} bxa3 {[%emt 0:01:49]} 22. bxa3 {[%emt 0:02:24]} h6 {[%emt 0:01:54]} 23. Qd2 {[%emt 0:02:52]} Bg5 {[%emt 0:02:15]} 24. Be3 {[%emt 0:00:25]} Qc5 {[%emt 0:03:45]} 25. Bxc5 {[%emt 0:02:51]} Bxd2 {[%emt 0:00:09]} 26. Bb4 {[%emt 0:04:13]} Bxe1 {[%emt 0:00:06]} 27. Bxe1 {[%emt 0:00:03]} Nc5 {[%emt 0:00:06]} 28. Bb4 {[%emt 0:01:38]} Nxd3 {[%emt 0:00:39]} 29. cxd3 {[%emt 0:00:09]} Rc2 {[%emt 0:00:30]} 30. Kf1 {[%emt 0:00:30]} d5 {[%emt 0:00:30]} 31. exd5 {[%emt 0:00:30]} Bxd5 {[%emt 0:00:30]} 32. Ne2 {[%emt 0:00:30]} Rac8 {[%emt 0:00:30]} 33. Rd1 {[%emt 0:00:30]} f6 {[%emt 0:00:30]} 34. Kf2 {[%emt 0:00:30]} Bb3 {[%emt 0:00:30]} 35. Re1 {[%emt 0:00:30]} Rb2 {[%emt 0:00:30]} 36. Ke3 {[%emt 0:00:30]} Bf7 {[%emt 0:00:30]} 37. h4 {[%emt 0:00:30]} Be8 {[%emt 0:00:30]} 38. g3 {[%emt 0:00:30]} Bb5 {[%emt 0:00:30]} 39. Rd1 {[%emt 0:00:30]} Rcc2 {[%emt 0:00:30]} 40. Re1 {[%emt 0:00:30]} Kf7 {[%emt 0:00:30]} 41. f4 {[%emt 0:15:30]} exf4+ {[%emt 0:15:30]} 42. Nxf4 {[%emt 0:00:30]} Rc8 {[%emt 0:00:30]} 43. Kd4 {[%emt 0:00:30]} Rc7 {[%emt 0:00:30]} 44. Re3 {[%emt 0:00:30]} Rb3 {[%emt 0:00:30]} 45. Ke4 {[%emt 0:00:30]} Rxb4+ {[%emt 0:00:30]} 46. axb4 {[%emt 0:00:30]} Re7+ {[%emt 0:00:30]} 0-1

[Event "37th Belgrade Trophy 2024"]
[Site "Belgrade"]
[Date "2024.11.23"]
[Round "1.6"]
[White "Xie, Jianjun"]
[Black "Li, Zhanjia"]
[Result "1-0"]
[ECO "C42"]
[WhiteElo "2361"]
[BlackElo "1859"]
[Annotator "RC"]
[PlyCount "45"]
[EventDate "2024.11.23"]
[EventCountry "SRB"]
[SourceTitle "playchess.com"]
[Source "ChessBase"]
[SourceQuality "1"]
[TimeControl "40/5400+30:900+30"]

1. e4 {[%emt 0:00:47]} e5 {[%emt 0:00:33]} 2. Nf3 {[%emt 0:00:07]} Nf6 {[%emt 0:00:07]} 3. Nxe5 {[%emt 0:01:21]} d6 {[%emt 0:00:13]} 4. Nf3 {[%emt 0:00:06]} Nxe4 {[%emt 0:00:05]} 5. d4 {[%emt 0:01:08]} d5 {[%emt 0:00:06]} 6. Bd3 {[%emt 0:00:04]} Nc6 {[%emt 0:01:28]} 7. O-O {[%emt 0:00:09]} Be7 {[%emt 0:00:05]} 8. c4 {[%emt 0:00:14]} Nf6 {[%emt 0:02:44]} 9. Nc3 {[%emt 0:22:06]} O-O {[%emt 0:02:32]} 10. h3 {[%emt 0:18:22]} Nb4 {[%emt 0:10:40]} 11. Be2 {[%emt 0:00:27]} dxc4 {[%emt 0:02:07]} 12. Bxc4 {[%emt 0:00:36]} c6 {[%emt 0:03:08]} 13. Ne5 {[%emt 0:01:39]} Bf5 {[%emt 0:06:09]} 14. Qf3 {[%emt 0:01:49]} Bg6 {[%emt 0:03:03]} 15. Be3 {[%emt 0:01:25]} Nbd5 {[%emt 0:03:12]} 16. Rad1 {[%emt 0:04:29]} Qd6 {[%emt 0:05:49]} 17. Bg5 {[%emt 0:04:06]} Rad8 {[%emt 0:10:05]} 18. Rfe1 {[%emt 0:00:09]} Nxc3 {[%emt 0:06:32]} 19. bxc3 {[%emt 0:00:43]} Rfe8 {[%emt 0:06:21]} 20. h4 {[%emt 0:12:11]} Nd5 {[%emt 0:09:13]} 21. h5 {[%emt 0:00:28]} Bxg5 {[%emt 0:03:24]} 22. hxg6 {[%emt 0:00:02]} Rf8 {[%emt 0:01:40]} 23. gxh7+ {[%emt 0:06:15]} 1-0

[Event "37th Belgrade Trophy 2024"]
[Site "Belgrade"]
[Date "2024.11.23"]
[Round "2"]
[White "Karisik, Nenad"]
[Black "Rogers, Tim L"]
[Result "1-0"]
[ECO "C41"]
[WhiteElo "2119"]
[BlackElo "1907"]
[Annotator "RC"]
[PlyCount "102"]
[EventDate "2024.11.23"]
[EventCountry "SRB"]
[SourceTitle "playchess.com"]
[Source "ChessBase"]
[SourceQuality "1"]
[TimeControl "40/5400+30:900+30"]

1. e4 d6 2. d4 Nf6 3. Nc3 e5 4. Nf3 exd4 5. Nxd4 Be7 6. Bc4 O-O 7. O-O Nxe4 8. Nxe4 d5 9. Bd3 dxe4 10. Bxe4 Nd7 11. Bf4 Nf6 12. Bf3 Nd5 13. Bg3 c6 14. c3 Bd6 15. Bxd5 cxd5 16. Bxd6 Qxd6 17. Qb3 Bd7 18. Rfe1 Rfd8 19. Re3 h6 20. Rae1 Qg6 21. Qxd5 Bc6 22. Nxc6 bxc6 23. Qe4 Qxe4 24. Rxe4 Rd2 25. R4e2 Rad8 26. f3 f6 27. Kf2 Kf7 28. Rxd2 Rxd2+ 29. Re2 Rd1 30. Ke3 Ke6 31. Rd2 Rh1 32. Kd4 Kd6 33. Kc4+ Kc7 34. h3 Re1 35. b4 h5 36. a4 a6 37. Rd4 Rg1 38. Rd2 Re1 39. h4 Re5 40. Rd4 g5 41. Re4 Rd5 42. hxg5 Rxg5 43. Re6 Rxg2 44. Rxf6 Rd2 45. Rf5 Rd5 46. Rxd5 cxd5+ 47. Kd4 Kd6 48. f4 Ke6 49. b5 axb5 50. axb5 Kd6 51. f5 Kc7 1-0

[Event "37th Belgrade Trophy 2024"]
[Site "Belgrade"]
[Date "2024.11.23"]
[Round "2"]
[White "Petkovic, Vladimir"]
[Black "Leftheriotis, Alexandros"]
[Result "0-1"]
[ECO "B23"]
[WhiteElo "1923"]
[BlackElo "2165"]
[Annotator "RC"]
[PlyCount "54"]
[EventDate "2024.11.23"]
[EventCountry "SRB"]
[SourceTitle "playchess.com"]
[Source "ChessBase"]
[SourceQuality "1"]
[TimeControl "40/5400+30:900+30"]

1. e4 c5 2. Nc3 a6 3. a4 Nc6 4. f4 g6 5. Bc4 Bg7 6. Nf3 d6 7. O-O e6 8. f5 gxf5 9. exf5 d5 10. fxe6 fxe6 11. Ba2 Nf6 12. d3 O-O 13. Qe1 Nb4 14. Bb3 c4 15. dxc4 dxc4 16. Bxc4 Nxc2 17. Qh4 Nxa1 18. Bh6 b5 19. Ng5 bxc4 20. Bxg7 Kxg7 21. Rxf6 Rxf6 22. Qxh7+ Kf8 23. Qh8+ Ke7 24. Qg7+ Ke8 25. h3 Qd4+ 26. Kh2 Qe5+ 27. Kg1 Rf1+ 0-1

[Event "37th Belgrade Trophy 2024"]
[Site "Belgrade"]
[Date "2024.11.24"]
[Round "2.1"]
[White "Shchekachev, Andrei"]
[Black "Stosic, Slobodan"]
[Result "1-0"]
[ECO "E71"]
[WhiteElo "2448"]
[BlackElo "1984"]
[Annotator "TA"]
[PlyCount "69"]
[EventDate "2024.11.23"]
[EventCountry "SRB"]
[SourceTitle "playchess.com"]
[Source "ChessBase"]
[SourceQuality "1"]
[TimeControl "40/5400+30:900+30"]

{[%evp 11,69,34,31,13,52,54,49,45,59,47,56,56,58,45,54,61,61,63,64,60,52,53,50,46,89,48,93,33,39,41,51,57,48,53,54,52,111,102,121,125,189,194,194,187,254,288,280,283,331,325,535,508,579,556,1014,993,943,956,860,858]} 1. d4 {[%emt 0:00:44]} Nf6 {[%emt 0:00:08]} 2. c4 {[%emt 0:00:09]} g6 {[%emt 0:00:15]} 3. Nc3 {[%emt 0:00:27]} Bg7 {[%emt 0:00:05]} 4. e4 {[%emt 0:00:17]} d6 {[%emt 0:00:02]} 5. h3 {[%emt 0:00:45]} O-O {[%emt 0:00:28]} 6. Be3 {[%emt 0:00:52]} Na6 {[%emt 0:02:18]} 7. Bd3 {[%emt 0:06:38]} c5 {[%emt 0:01:07][%cal Of6g4]} 8. Nf3 {[%emt 0:00:50]} cxd4 {[%emt 0:01:36]} 9. Nxd4 {[%emt 0:00:12] White is slightly better.} Nc5 {[%emt 0:00:44]} 10. O-O {[%emt 0:02:26]} b6 {[%emt 0:26:09]} 11. f3 {[%emt 0:03:46]} Bb7 {[%emt 0:01:24]} 12. Be2 {[%emt 0:03:28]} Nh5 {[%emt 0:08:46][%cal Bf6h5,Bh5g3,Bg3e2][%mdl 32]} 13. Qd2 {[%emt 0:00:45]} Ng3 {[%emt 0:00:37]} 14. Rfe1 {[%emt 0:03:35]} Nxe2+ {[%emt 0:01:22]} 15. Rxe2 {[%emt 0:05:50]} Rc8 {[%emt 0:06:56]} 16. b3 {[%emt 0:06:36]} a6 {[%emt 0:02:20]} 17. Rd1 {[%emt 0:01:43]} Qc7 {[%emt 0:01:45]} 18. Ree1 {[%emt 0:19:59]} Ne6 {[%emt 0:10:24]} 19. Nce2 {[%emt 0:08:12]} (19. Nxe6 $16 fxe6 20. Na4) 19... Nxd4 $14 {[%emt 0:03:26]} 20. Nxd4 {[%emt 0:00:33]} Rb8 {[%emt 0:03:21]} 21. Kh1 {[%emt 0:03:37]} Rfd8 {[%emt 0:02:40]} 22. a4 {[%emt 0:01:34]} e6 {[%emt 0:04:34]} 23. Rc1 {[%emt 0:02:32]} e5 {[%emt 0:08:46]} (23... Qe7 $14) 24. Ne2 {[%emt 0:02:24]} f5 {[%emt 0:00:20]} 25. Nc3 {[%emt 0:01:27] White is more active.} f4 {[%emt 0:02:41]} (25... Re8 $16 26. Red1 Bf8) 26. Bf2 $18 {[%emt 0:00:09]} g5 {[%emt 0:02:47]} 27. Nd5 {[%emt 0:03:29]} Bxd5 {[%emt 0:00:04]} (27... Qf7 $142 28. Bxb6 Rd7) 28. cxd5 {[%emt 0:01:11][%cal Bc4d5,Bd5c6,Bc6c7][%mdl 32]} (28. exd5 h5 $16) ({But not} 28. Qxd5+ $6 Qf7 29. b4 Bf8 $14) 28... Qd7 {[%emt 0:01:46]} 29. Rc6 {[%emt 0:00:32]} Rdc8 {[%emt 0:02:06]} 30. Rec1 {[%emt 0:01:59]} (30. Rxb6 Rxb6 31. Bxb6 h5 $16) ({Resist} 30. Bxb6 Rxc6 31. dxc6 Qxc6 $18) 30... Rxc6 $2 {[%emt 0:03:58] [#]} (30... b5 {was worth a try.} 31. Qc2 (31. Rxa6 h5 $18) 31... Rxc6 32. dxc6 Qc7) 31. dxc6 {[%emt 0:02:54] White is clearly winning.} Qe6 {[%emt 0:00:53]} 32. Qd3 {[%emt 0:03:04]} b5 {[%emt 0:01:22]} 33. c7 {[%emt 0:00:56]} Rc8 {[%emt 0:00:19]} 34. axb5 {[%emt 0:00:04]} axb5 {[%emt 0:00:12]} 35. Qxb5 {[%emt 0:00:06] Weighted Error Value: White=0.07 (flawless) /Black=0.27 (precise) .  Mistake:       	White=1     	Black=4      Inaccurate:     	White=1     	Black=4      OK:         	White=14    	Black=10     Best:        	White=1     	---} 1-0

[Event "37th Belgrade Trophy 2024"]
[Site "Belgrade"]
[Date "2024.11.24"]
[Round "2.3"]
[White "Atalik, Suat"]
[Black "Xie, Jiaxiang"]
[Result "1/2-1/2"]
[ECO "A90"]
[WhiteElo "2420"]
[BlackElo "1949"]
[Annotator "RC"]
[PlyCount "71"]
[EventDate "2024.11.23"]
[EventCountry "SRB"]
[SourceTitle "playchess.com"]
[Source "ChessBase"]
[SourceQuality "1"]
[TimeControl "40/5400+30:900+30"]

1. d4 {[%emt 0:00:04]} f5 {[%emt 0:00:41]} 2. g3 {[%emt 0:01:45]} Nf6 {[%emt 0:00:13]} 3. Bg2 {[%emt 0:00:06]} d5 {[%emt 0:00:12]} 4. Nh3 {[%emt 0:03:34]} e6 {[%emt 0:00:33]} 5. O-O {[%emt 0:00:49]} Bd6 {[%emt 0:00:47]} 6. c4 {[%emt 0:01:44]} c6 {[%emt 0:00:09]} 7. Qc2 {[%emt 0:01:15]} O-O {[%emt 0:00:24]} 8. Bf4 {[%emt 0:00:26]} Ne4 {[%emt 0:02:24]} 9. f3 {[%emt 0:03:16]} Bxf4 {[%emt 0:00:36]} 10. Nxf4 {[%emt 0:00:07]} Nd6 {[%emt 0:00:09]} 11. Nd2 {[%emt 0:00:49]} b6 {[%emt 0:05:05]} 12. e3 {[%emt 0:05:00]} Qf6 {[%emt 0:01:31]} 13. Nd3 {[%emt 0:04:49]} Bb7 {[%emt 0:02:50]} 14. Qc3 {[%emt 0:06:12]} Nf7 {[%emt 0:04:29]} 15. e4 {[%emt 0:04:24]} Nd7 {[%emt 0:11:54]} 16. exf5 {[%emt 0:03:21]} exf5 {[%emt 0:01:26]} 17. Rfe1 {[%emt 0:00:21]} Rfe8 {[%emt 0:09:57]} 18. f4 {[%emt 0:00:56]} Qd6 {[%emt 0:03:24]} 19. Ne5 {[%emt 0:08:05]} Nf6 {[%emt 0:05:31]} 20. cxd5 {[%emt 0:05:05]} cxd5 {[%emt 0:02:10]} 21. Ndc4 {[%emt 0:09:09]} Qc7 {[%emt 0:04:49]} 22. Nxf7 {[%emt 0:03:23]} Qxf7 {[%emt 0:04:15]} 23. Nd6 {[%emt 0:09:39]} Rxe1+ {[%emt 0:00:35]} 24. Qxe1 {[%emt 0:00:46]} Qd7 {[%emt 0:02:19]} 25. Qe5 {[%emt 0:02:04]} Rd8 {[%emt 0:03:31]} 26. Nxb7 {[%emt 0:00:46]} Re8 {[%emt 0:00:28]} 27. Qd6 {[%emt 0:00:14]} Qxb7 {[%emt 0:00:07]} 28. Rc1 {[%emt 0:00:51]} Re7 {[%emt 0:02:49]} 29. Bh3 {[%emt 0:01:43]} Ng4 {[%emt 0:11:18]} 30. Bxg4 {[%emt 0:00:19]} fxg4 {[%emt 0:02:45]} 31. f5 {[%emt 0:01:37]} Qd7 {[%emt 0:06:22]} 32. Qf4 {[%emt 0:03:09]} Re4 {[%emt 0:02:14]} 33. Qb8+ {[%emt 0:12:15]} Re8 {[%emt 0:00:07]} 34. Qf4 {[%emt 0:00:29]} Re4 {[%emt 0:00:05]} 35. Qb8+ {[%emt 0:00:12]} Re8 {[%emt 0:00:05]} 36. Qf4 {[%emt 0:00:04]} 1/2-1/2

[Event "37th Belgrade Trophy 2024"]
[Site "Belgrade"]
[Date "2024.11.24"]
[Round "2.4"]
[White "Zhambalov, Bator"]
[Black "Stanojoski, Zvonko"]
[Result "0-1"]
[ECO "B30"]
[WhiteElo "1984"]
[BlackElo "2401"]
[Annotator "RC"]
[PlyCount "70"]
[EventDate "2024.11.23"]
[EventCountry "SRB"]
[SourceTitle "playchess.com"]
[Source "ChessBase"]
[SourceQuality "1"]
[TimeControl "40/5400+30:900+30"]

1. e4 {[%emt 0:08:18]} c5 {[%emt 0:00:24]} 2. Nf3 {[%emt 0:00:06]} Nc6 {[%emt 0:00:08]} 3. Bb5 {[%emt 0:09:49]} Nf6 {[%emt 0:00:19]} 4. e5 {[%emt 0:05:18]} Nd5 {[%emt 0:00:14]} 5. O-O {[%emt 0:00:15]} Nc7 {[%emt 0:01:05]} 6. Bxc6 {[%emt 0:01:42]} dxc6 {[%emt 0:00:07]} 7. h3 {[%emt 0:00:37]} Ne6 {[%emt 0:02:42]} 8. d3 {[%emt 0:01:04]} g6 {[%emt 0:00:31]} 9. b3 {[%emt 0:01:29]} Bg7 {[%emt 0:00:30]} 10. Bb2 {[%emt 0:00:06]} b6 {[%emt 0:06:17]} 11. Nbd2 {[%emt 0:02:24]} O-O {[%emt 0:00:39]} 12. Ne4 {[%emt 0:01:32]} a5 {[%emt 0:01:30]} 13. a4 {[%emt 0:01:35]} Qd5 {[%emt 0:04:31]} 14. Re1 {[%emt 0:04:24]} h6 {[%emt 0:03:47]} 15. Qd2 {[%emt 0:03:50]} Kh7 {[%emt 0:05:14]} 16. Rad1 {[%emt 0:07:00]} Nd4 {[%emt 0:05:00]} 17. Nxd4 {[%emt 0:04:52]} cxd4 {[%emt 0:00:12]} 18. f4 {[%emt 0:00:19]} c5 {[%emt 0:00:38]} 19. Qf2 {[%emt 0:01:53]} Bb7 {[%emt 0:04:39]} 20. Bc1 {[%emt 0:03:41]} f5 {[%emt 0:04:56]} 21. exf6 {[%emt 0:12:04]} exf6 {[%emt 0:00:42]} 22. f5 {[%emt 0:07:14]} gxf5 {[%emt 0:01:32]} 23. Ng3 {[%emt 0:00:22]} f4 {[%emt 0:01:56]} 24. Bxf4 {[%emt 0:01:47]} Rf7 {[%emt 0:00:42]} 25. Ne4 {[%emt 0:11:24]} Rd8 {[%emt 0:05:28]} 26. Nd2 {[%emt 0:01:38]} Rg8 {[%emt 0:00:42]} 27. Kh2 {[%emt 0:02:44]} Bf8 {[%emt 0:00:46]} 28. g3 {[%emt 0:01:10]} Bd6 {[%emt 0:04:45]} 29. Bxd6 {[%emt 0:00:41]} Qxd6 {[%emt 0:00:03]} 30. Nc4 {[%emt 0:01:18]} Qc7 {[%emt 0:01:47]} 31. Rg1 {[%emt 0:01:37]} Re8 {[%emt 0:07:39]} 32. Rde1 {[%emt 0:02:09]} Rfe7 {[%emt 0:00:25]} 33. Rxe7+ {[%emt 0:01:29]} Rxe7 {[%emt 0:00:17]} 34. Rf1 {[%emt 0:01:03]} Qc6 {[%emt 0:02:49]} 35. Nd2 {[%emt 0:00:33]} Re5 {[%emt 0:35:04]} 0-1

[Event "37th Belgrade Trophy 2024"]
[Site "Belgrade"]
[Date "2024.11.24"]
[Round "2.5"]
[White "Sutormin, Danila"]
[Black "Karaivanova, Petya"]
[Result "1-0"]
[ECO "D35"]
[WhiteElo "2394"]
[BlackElo "1939"]
[Annotator "RC"]
[PlyCount "77"]
[EventDate "2024.11.23"]
[EventCountry "SRB"]
[SourceTitle "playchess.com"]
[Source "ChessBase"]
[SourceQuality "1"]
[TimeControl "40/5400+30:900+30"]

1. d4 {[%emt 0:02:50]} d5 {[%emt 0:03:28]} 2. c4 {[%emt 0:00:17]} e6 {[%emt 0:00:03]} 3. Nc3 {[%emt 0:00:13]} Nf6 {[%emt 0:00:05]} 4. cxd5 {[%emt 0:00:09]} exd5 {[%emt 0:00:06]} 5. Bf4 {[%emt 0:00:09]} Bd6 {[%emt 0:00:53]} 6. Bxd6 {[%emt 0:00:14]} Qxd6 {[%emt 0:00:06]} 7. e3 {[%emt 0:00:08]} Bf5 {[%emt 0:08:12]} 8. Qf3 {[%emt 0:00:12]} Bg4 {[%emt 0:03:24]} 9. Qg3 {[%emt 0:00:06]} Qxg3 {[%emt 0:00:04]} 10. hxg3 {[%emt 0:00:04]} a6 {[%emt 0:08:21]} 11. f3 {[%emt 0:03:08]} Be6 {[%emt 0:00:28]} 12. g4 {[%emt 0:03:23]} Nbd7 {[%emt 0:01:46]} 13. g5 {[%emt 0:04:39]} Ng8 {[%emt 0:00:06]} 14. Nge2 {[%emt 0:01:22]} Ne7 {[%emt 0:04:31]} 15. Nf4 {[%emt 0:00:31]} O-O-O {[%emt 0:06:32]} 16. Bd3 {[%emt 0:08:35]} g6 {[%emt 0:00:44]} 17. O-O-O {[%emt 0:04:50]} c6 {[%emt 0:17:45]} 18. g4 {[%emt 0:00:21]} b5 {[%emt 0:02:50]} 19. Rh2 {[%emt 0:04:31]} c5 {[%emt 0:03:45]} 20. dxc5 {[%emt 0:02:47]} Nxc5 {[%emt 0:02:15]} 21. Bb1 {[%emt 0:01:03]} Kb8 {[%emt 0:05:59]} 22. b3 {[%emt 0:03:42]} Nc6 {[%emt 0:04:30]} 23. Nce2 {[%emt 0:02:44]} Rc8 {[%emt 0:05:51]} 24. Kb2 {[%emt 0:02:12]} Ne5 {[%emt 0:08:57]} 25. Nd4 {[%emt 0:00:09]} b4 {[%emt 0:00:23]} 26. Rdh1 {[%emt 0:06:54]} Nb7 {[%emt 0:10:39]} 27. Rxh7 {[%emt 0:03:39]} Rxh7 {[%emt 0:00:58]} 28. Rxh7 {[%emt 0:00:06]} Rc3 {[%emt 0:00:05]} 29. Rh8+ {[%emt 0:22:02]} Ka7 {[%emt 0:00:20]} 30. Re8 {[%emt 0:00:07]} Rxe3 {[%emt 0:01:03]} 31. Nfxe6 {[%emt 0:00:24]} fxe6 {[%emt 0:00:14]} 32. Rxe6 {[%emt 0:00:08]} Nd8 {[%emt 0:01:17]} 33. Rd6 {[%emt 0:03:39]} Ndf7 {[%emt 0:00:45]} 34. Rxd5 {[%emt 0:00:51]} Kb6 {[%emt 0:00:07]} 35. f4 {[%emt 0:04:18]} Nxg4 {[%emt 0:00:55]} 36. Bxg6 {[%emt 0:00:07]} Nxg5 {[%emt 0:00:25]} 37. Rxg5 {[%emt 0:01:46]} Nf2 {[%emt 0:00:15]} 38. Bc2 {[%emt 0:00:14]} Nh3 {[%emt 0:00:41]} 39. Re5 {[%emt 0:00:45]} 1-0